bitfinex-derivatives/quotes_ETHF0:USTF0_20250126
["timestamp","ask_amount","ask_price","bid_price","bid_amount"]
[1737929152177,0.00454911,3295.2,3294.8,1.93676]
[1737929152680,0.00454911,3295.2,3294.8,1.3297]
[1737929152986,0.00454911,3295.2,3294.8,1.93676]
[1737929153170,0.00454911,3295.2,3294.8,1.3297]
[1737929153370,0.00454911,3295.2,3294.9,0.60704]
[1737929153579,0.00454911,3295.2,3294.8,1.3297]
[1737929154081,0.00454911,3295.2,3294.8,1.93676]
[1737929154780,0.00454911,3295.2,3294.9,0.60703]
[1737929155183,0.00454911,3295.2,3295.0,0.60702]
[1737929155782,0.00454911,3295.2,3295.1,3.2078]
[1737929157484,0.00454911,3295.2,3295.0,0.60702]
[1737929157884,0.00454911,3295.2,3294.8,1.3297]
[1737929158081,0.00454911,3295.2,3295.1,0.60701]
[1737929159087,0.00454911,3295.2,3295.1,3.81481]
[1737929160682,3.2078,3296.2,3295.1,3.2078]
[1737929160884,3.2078,3296.2,3296.0,0.60683]
[1737929161085,2.4635,3296.7,3296.3,0.60677]
[1737929161286,2.4635,3296.7,3296.3,0.60678]
[1737929161890,2.4635,3296.7,3296.2,0.00454911]
[1737929162596,2.4635,3296.7,3296.3,0.60678]
[1737929163688,2.4635,3296.7,3296.6,0.60673]
[1737929165297,0.00454911,3296.8,3296.7,0.60671]
[1737929170297,0.00454911,3296.8,3296.7,0.64825562]
[1737929173101,0.00454911,3296.8,3296.7,5.64825562]
[1737929173403,3.2078,3297.9,3297.5,0.60658]
[1737929173598,3.2078,3297.9,3297.4,0.6066]
[1737929173788,3.81431,3297.9,3297.4,0.6066]
[1737929173994,3.2078,3297.9,3297.4,0.6066]
[1737929174499,3.2078,3297.9,3297.6,0.04154562]
[1737929174799,3.81431,3297.9,3297.6,0.04154562]
[1737929175291,3.2078,3297.9,3297.6,0.04154562]
[1737929175493,0.60674,3296.7,3296.4,3.2078]
[1737929175693,1.2898,3296.6,3296.4,3.2078]
[1737929175893,2.6277,3296.6,3296.4,3.2078]
[1737929176093,2.6277,3296.6,3296.5,0.60677]
[1737929176999,2.6277,3296.6,3296.4,3.2078]
[1737929177999,3.23442,3296.6,3296.2,0.00454911]
[1737929178304,2.6277,3296.6,3296.2,0.61133911]
[1737929178510,2.6277,3296.6,3296.3,0.60678]
[1737929181099,2.6277,3296.6,3296.2,0.00454911]
[1737929181297,2.6277,3296.6,3296.5,0.60674]
[1737929183307,1.2495,3296.9,3296.5,0.60674]
[1737929183506,1.2495,3296.9,3296.6,0.60672]
[1737929183903,3.2078,3297.0,3296.4,2.86071713]
[1737929184109,2.5845,3297.2,3297.1,0.60663]
[1737929189818,1.84575,3297.6,3297.1,0.60663]
[1737929189819,1.2392,3297.6,3297.5,0.60656]
[1737929190514,2.6209,3297.8,3297.7,0.60652]
[1737929190910,2.6209,3297.8,3297.7,3.81432]
[1737929193321,1.3257,3297.8,3297.7,3.81432]
[1737929195928,1.3257,3297.8,3297.7,0.60652]
[1737929196315,1.3257,3297.8,3297.4,0.60657]
[1737929196723,1.3257,3297.8,3297.3,4.84111713]
[1737929196925,1.3257,3297.8,3297.4,0.60657]
[1737929198619,1.3257,3297.8,3297.5,0.60656]
[1737929198824,1.3257,3297.8,3297.4,0.60657]
[1737929199225,1.3257,3297.8,3297.6,0.60653]
[1737929199427,1.3257,3297.8,3297.3,4.84111713]
[1737929199631,1.3257,3297.8,3297.7,0.60652]
[1737929200226,1.3257,3297.8,3297.3,4.84111713]
[1737929200424,1.3257,3297.8,3297.6,0.60653]
[1737929200831,1.3257,3297.8,3297.7,0.60652]
[1737929202727,0.00454911,3298.0,3297.9,0.60649]
[1737929203026,0.00454911,3298.0,3297.9,2.23980713]
[1737929204433,0.00454911,3298.0,3297.9,7.23980713]
[1737929205629,0.00454911,3298.0,3297.9,2.23980713]
[1737929205927,0.00454911,3298.0,3297.9,7.23980713]
[1737929206320,10.51142727,3299.0,3298.9,0.6063]
[1737929207326,10.51142727,3299.0,3298.8,1.85021]
[1737929207532,11.11771727,3299.0,3298.6,0.00454911]
[1737929207729,2.564,3298.9,3298.6,0.00454911]
[1737929208122,1.2283,3298.8,3298.6,3.21234911]
[1737929209332,1.2283,3298.8,3298.6,0.00454911]
[1737929209635,0.60645,3298.2,3297.7,3.2078]
[1737929209933,0.60641,3298.4,3297.9,0.60648]
[1737929210135,0.60641,3298.4,3297.9,0.60649]
[1737929212034,3.2078,3298.5,3297.8,0.00454911]
[1737929212231,3.81419,3298.5,3297.9,0.60649]
[1737929212533,3.81419,3298.5,3298.0,0.60647]
[1737929212730,0.60638,3298.5,3298.0,0.60647]
[1737929213032,2.5484,3298.7,3298.1,0.60645]
[1737929213033,1.2998,3298.4,3298.1,0.60645]
[1737929213334,1.2998,3298.4,3298.1,3.2078]
[1737929213528,2.5484,3298.7,3298.5,0.60636]
[1737929213733,3.2078,3298.9,3298.6,0.60635]
[1737929213734,4.5076,3298.9,3298.6,0.60635]
[1737929213922,4.5076,3298.9,3298.5,3.2078]
[1737929214127,5.11392,3298.9,3298.5,3.2078]
[1737929214837,4.5076,3298.9,3298.5,3.2078]
[1737929215136,0.60639,3298.5,3298.0,0.60646]
[1737929216536,0.60635,3298.7,3297.9,1.63331713]
[1737929216735,0.60636,3298.6,3298.1,0.60644]
[1737929216936,0.60638,3298.5,3298.0,0.60646]
[1737929217135,1.2231,3298.4,3297.9,1.63331713]
[1737929217337,1.2249,3298.3,3297.9,1.63331713]
[1737929217637,1.2249,3298.3,3297.8,1.28914911]
[1737929217638,1.29,3298.2,3297.8,1.28914911]
[1737929217837,1.29,3298.2,3297.8,1.89565911]
[1737929218532,1.29,3298.2,3297.8,1.28914911]
[1737929218727,1.29,3298.2,3297.9,0.60648]
[1737929219232,1.29,3298.2,3297.8,4.49694911]
[1737929219435,1.29,3298.2,3297.9,0.60649]
[1737929220327,3.2078,3298.0,3297.8,0.00454911]
[1737929220533,0.60649,3297.9,3297.8,0.00454911]
[1737929220929,3.2078,3298.0,3297.8,0.00454911]
[1737929221339,0.60649,3297.9,3297.8,0.00454911]
[1737929221844,3.81428,3298.0,3297.8,0.00454911]
[1737929222042,3.2078,3298.0,3297.8,0.00454911]
[1737929222343,0.60649,3297.9,3297.8,0.00454911]
[1737929224235,3.81428,3298.0,3297.8,0.00454911]
[1737929224537,0.60649,3297.9,3297.8,0.00454911]
[1737929224944,3.2078,3298.0,3297.8,0.00454911]
[1737929225239,3.81428,3298.0,3297.8,0.00454911]
[1737929225442,3.2078,3298.0,3297.8,0.00454911]
[1737929225640,3.81428,3298.0,3297.8,0.00454911]
[1737929226240,3.2078,3298.0,3297.9,0.60649]
[1737929226937,3.2078,3298.0,3297.8,0.00454911]
[1737929227336,0.60649,3297.9,3297.8,0.00454911]
[1737929233244,0.60664,3297.1,3296.7,0.6067]
[1737929233544,3.2078,3297.4,3296.7,0.6067]
[1737929233746,0.60664,3297.1,3296.8,1.3178]
[1737929234135,1.2097,3297.3,3296.8,1.3178]
[1737929234346,0.60662,3297.2,3296.8,1.92448]
[1737929235142,1.21424911,3297.3,3296.8,1.92448]
[1737929235143,1.21424911,3297.3,3296.9,0.60667]
[1737929235342,1.21424911,3297.3,3296.9,1.93857]
[1737929235739,1.21424911,3297.3,3296.9,5.14637]
[1737929235939,1.82084911,3297.3,3296.9,5.14637]
[1737929236344,1.82084911,3297.3,3296.9,4.5397]
[1737929236545,1.82084911,3297.3,3296.9,5.14637]
[1737929236846,1.82084911,3297.3,3296.9,4.5397]
[1737929237042,1.21424911,3297.3,3296.9,4.5397]
[1737929237253,0.00454911,3297.3,3296.9,4.5397]
[1737929237548,0.61115911,3297.3,3296.9,5.14637]
[1737929237743,0.60665,3297.1,3296.9,4.5397]
[1737929238537,0.60663,3297.2,3296.9,4.5397]
[1737929238742,0.60662,3297.2,3296.9,4.5397]
[1737929239550,0.60665,3297.1,3296.9,4.5397]
[1737929242949,0.00454911,3297.3,3296.9,3.2078]
[1737929243154,0.60671,3296.7,3296.6,0.00454911]
[1737929243748,4.84111713,3297.4,3296.6,0.00454911]
[1737929243954,0.60663,3297.2,3296.6,0.00454911]
[1737929244251,0.60663,3297.2,3296.8,0.60669]
[1737929244448,0.60663,3297.2,3296.9,1.265]
[1737929244851,1.28404911,3297.3,3296.9,1.265]
[1737929245050,0.60664,3297.1,3296.9,2.54]
[1737929246150,0.60664,3297.1,3296.9,3.14667]
[1737929246548,0.60665,3297.0,3296.9,1.265]
[1737929246761,0.60671,3296.7,3296.6,0.00454911]
[1737929248255,2.24002713,3296.7,3296.6,0.00454911]
[1737929248858,3.22002713,3296.7,3296.6,0.00454911]
[1737929251553,0.60686,3295.9,3295.8,0.60687]
[1737929251754,1.63331713,3296.3,3295.7,1.2704]
[1737929251965,0.60687,3295.8,3295.7,1.2704]
[1737929252345,1.63331713,3296.3,3295.2,4.5341]
[1737929252550,0.60693,3295.6,3295.3,1.2175]
[1737929252748,0.60693,3295.6,3295.4,0.61147911]
[1737929252965,1.63331713,3296.3,3295.4,0.00454911]
[1737929253264,0.60693,3295.5,3295.4,0.00454911]
[1737929256254,0.60692,3295.6,3295.4,0.00454911]
[1737929256962,1.3385,3295.9,3295.4,0.00454911]
[1737929257165,0.60688,3295.8,3295.4,0.00454911]
[1737929257375,0.60693,3295.6,3295.4,0.00454911]
[1737929260370,1.3385,3295.9,3295.4,0.00454911]
[1737929260559,2.24024713,3295.5,3295.4,0.00454911]
[1737929260861,2.24024713,3295.5,3294.5,5.99518679]
[1737929260862,0.6071,3294.6,3294.5,5.99518679]
[1737929261062,0.6071,3294.6,3294.5,4.71988679]
[1737929262362,3.8149,3294.6,3294.5,4.71988679]
[1737929262560,8.8149,3294.6,3294.5,2.71018679]
[1737929262755,8.8149,3294.6,3293.9,11.56963743]
[1737929262756,0.60714,3294.4,3294.3,5.41060337]
[1737929262967,2.24045713,3294.4,3294.3,5.41060337]
[1737929263267,7.24045713,3294.4,3294.3,5.41060337]
[1737929264664,2.24045713,3294.4,3294.3,5.41060337]
[1737929264865,7.24045713,3294.4,3294.3,5.41060337]
[1737929265861,8.56565713,3294.4,3294.3,5.41060337]
[1737929266266,8.56565713,3294.4,3294.3,2.69628337]
[1737929266481,0.60717,3294.2,3294.1,5.34856264]
[1737929266674,0.60717,3294.2,3294.1,4.06251264]
[1737929266675,5.44828713,3294.2,3294.1,4.06251264]
[1737929266870,8.81497,3294.2,3294.1,3.39927264]
[1737929268166,8.81497,3294.2,3293.9,7.9536674]
[1737929268363,1.63331713,3294.0,3291.6,3.2078]
[1737929268666,5.44858713,3292.6,3291.6,3.2078]
[1737929268856,6.48258713,3292.6,3291.6,3.81544]
[1737929269061,11.48258713,3292.6,3291.6,3.81544]
[1737929269261,11.48258713,3292.6,3291.6,3.2078]
[1737929269967,11.48258713,3292.6,3291.7,20.24862355]
[1737929270166,11.48258713,3292.6,3291.7,19.64100355]
[1737929270465,5.44858713,3292.6,3291.7,19.64100355]
[1737929270671,5.44858713,3292.6,3292.1,0.60756]
[1737929270965,5.44858713,3292.6,3291.8,1.3]
[1737929271269,5.44858713,3292.6,3291.8,1.90761]
[1737929271465,5.44858713,3292.6,3291.8,1.3]
[1737929271855,10.44858713,3292.6,3291.8,1.3]
[1737929272061,0.60762,3291.8,3291.7,19.64100355]
[1737929272362,3.2078,3291.8,3291.7,19.64100355]
[1737929272760,1.63331713,3292.2,3291.7,20.24864355]
[1737929272966,1.63331713,3292.2,3291.8,1.2433]
[1737929273267,1.63331713,3292.8,3291.9,4.5418]
[1737929273463,1.63331713,3292.8,3292.5,0.60748]
[1737929273765,1.63331713,3292.8,3292.6,1.2433]
[1737929274667,1.63331713,3292.8,3292.6,1.85077]
[1737929274867,0.00454911,3292.9,3292.6,1.2433]
[1737929275064,0.00454911,3292.9,3292.8,0.60743]
[1737929276570,0.00454911,3292.9,3292.6,1.2433]
[1737929276872,0.00454911,3292.9,3292.7,0.60744]
[1737929277276,0.00454911,3292.9,3292.6,1.2433]
[1737929277665,0.60744,3292.8,3292.6,1.2433]
[1737929277973,0.00454911,3292.9,3292.6,1.2433]
[1737929278273,0.00454911,3292.9,3292.6,1.85076]
[1737929278474,0.00454911,3292.9,3292.6,1.2433]
[1737929278664,0.00454911,3292.9,3292.7,1.3381]
[1737929278865,0.00454911,3292.9,3292.8,0.60743]
[1737929279059,0.00454911,3292.9,3292.7,1.94554]
[1737929279264,0.00454911,3292.9,3292.8,0.60743]
[1737929280074,3.2078,3293.5,3292.7,1.3381]
[1737929280273,3.2078,3293.5,3293.3,0.60733]
[1737929280774,3.81511,3293.5,3293.3,0.60733]
[1737929281378,1.63331713,3293.4,3293.1,0.00455621]
[1737929281870,0.60735,3293.3,3293.1,0.00455621]
[1737929282066,0.60736,3293.2,3293.1,0.00455621]
[1737929283676,1.63331713,3293.4,3293.1,0.00455621]
[1737929283870,0.60736,3293.2,3293.1,0.00455621]
[1737929285070,1.63331713,3293.4,3293.1,0.00455621]
[1737929285276,0.60734,3293.3,3293.1,0.00455621]
[1737929286279,1.63331713,3293.4,3293.1,0.00455621]
[1737929286280,0.60736,3293.2,3293.1,0.00455621]
[1737929286877,0.60741,3292.9,3292.8,0.00265272]
[1737929287179,0.60756,3292.1,3291.8,3.25951]
[1737929287379,3.81536,3292.1,3291.8,3.25951]
[1737929287581,0.60759,3292.0,3291.8,3.25951]
[1737929287883,3.2078,3292.5,3291.8,2.6519]
[1737929288379,0.60757,3292.1,3291.9,0.60759]
[1737929288681,0.60751,3292.4,3291.9,0.6076]
[1737929288886,0.60757,3292.1,3291.9,0.6076]
[1737929289280,0.60757,3292.1,3291.8,2.6519]
[1737929289487,0.60757,3292.1,3291.8,3.25951]
[1737929289780,3.2078,3292.5,3291.8,2.6519]
[1737929289781,0.6076,3291.9,3291.8,2.6519]
[1737929290179,1.63331713,3292.3,3291.7,19.64100355]
[1737929290380,0.60762,3291.8,3291.7,3.64840061]
[1737929290584,1.63331713,3292.0,3291.2,11.46379101]
[1737929290784,4.84111713,3291.3,3291.2,3.40927922]
[1737929290977,4.84111713,3291.3,3291.0,3.64174929]
[1737929291181,4.84111713,3291.3,3289.5,15.9688]
[1737929291182,0.60795,3290.0,3289.9,2.6209]
[1737929291389,0.60797,3289.9,3289.3,27.47320673]
[1737929291580,8.29228713,3289.9,3289.3,27.47320673]
[1737929292584,5.80651642,3289.4,3289.3,8.87907522]
[1737929292890,0.60828,3288.2,3288.1,18.58230703]
[1737929293780,0.60828,3288.2,3288.1,21.62230703]
[1737929294182,4.2758,3288.7,3288.1,21.62230703]
[1737929294482,0.60828,3288.2,3288.1,21.62230703]
[1737929294785,1.52021,3289.3,3288.1,21.62230703]
[1737929294786,3.2078,3288.9,3288.6,3.04]
[1737929294981,1.082,3289.4,3288.1,18.58230703]
[1737929294982,3.2078,3289.3,3289.1,3.04]
[1737929295187,3.2078,3289.3,3289.2,3.04]
[1737929295380,3.81588,3289.3,3289.2,3.04]
[1737929295785,0.60821,3288.6,3288.5,1.3408]
[1737929295985,3.2078,3288.6,3288.2,1.2855]
[1737929296188,3.2078,3288.6,3288.3,3.04]
[1737929296189,0.60824,3288.4,3288.3,3.04]
[1737929296485,0.60823,3288.5,3288.3,3.04]
[1737929296680,5.19845642,3288.6,3287.8,15.11146143]
[1737929296877,5.80673642,3288.2,3287.8,15.11146143]
[1737929297090,5.80673642,3288.2,3287.8,6.42457527]
[1737929297288,5.19845642,3288.2,3287.6,18.08394802]
[1737929297487,5.19845642,3288.2,3287.6,14.07659053]
[1737929297687,1.092,3288.1,3287.6,2.48792506]
[1737929297890,5.19845642,3287.7,3286.4,25.7314255]
[1737929298187,3.2078,3286.5,3286.4,25.7314255]
[1737929298391,1.99065642,3288.2,3286.4,25.7314255]
[1737929298392,3.2078,3286.9,3286.5,3.04]
[1737929298892,3.21236336,3287.4,3286.8,3.04]
[1737929299095,0.00456336,3287.4,3287.3,3.64845]
[1737929299289,0.00456336,3287.4,3286.2,3.2078]
[1737929299290,1.99065642,3287.4,3286.2,3.2078]
[1737929299484,3.81627,3287.2,3287.1,3.04]
[1737929299686,3.2078,3287.2,3286.7,0.60854]
[1737929299986,3.2078,3287.2,3287.1,3.04]
[1737929300394,3.81627,3287.2,3287.1,3.04]
[1737929300595,3.2078,3287.2,3287.1,3.04]
[1737929300796,0.61297336,3287.5,3287.1,3.04]
[1737929301005,0.61297336,3287.5,3287.2,3.04]
[1737929301006,0.00456336,3287.5,3287.2,3.04]
[1737929301296,0.60843,3287.4,3287.3,3.04]
[1737929301489,0.61298336,3287.5,3287.3,3.04]
[1737929301692,37.6702962,3287.4,3287.3,3.04]
[1737929301890,37.6702962,3287.4,3286.8,0.00456336]
[1737929302091,3.81628,3287.2,3286.8,0.00456336]
[1737929302292,3.2078,3287.2,3286.8,0.00456336]
[1737929302495,3.2078,3287.2,3287.1,3.04]
[1737929304506,40.8780962,3287.2,3286.4,2.29471803]
[1737929304897,40.8780962,3287.2,3287.0,0.6085]
[1737929305094,40.8780962,3287.2,3286.4,2.29471803]
[1737929305399,40.8780962,3287.2,3286.9,0.60851]
[1737929305700,22.61509308,3287.2,3286.9,0.60851]
[1737929305897,22.61509308,3287.2,3287.0,0.60849]
[1737929306196,22.61509308,3287.2,3286.5,0.6086]
[1737929306396,3.2078,3286.8,3286.4,0.6086]
[1737929306700,3.2078,3286.8,3285.8,1.99065642]
[1737929307401,3.2078,3286.8,3286.5,0.60863]
[1737929307702,3.2078,3286.8,3285.8,3.51254642]
[1737929307998,6.87278808,3286.5,3286.4,0.60864]
[1737929308393,0.82988808,3286.5,3286.4,5.60864]
[1737929308900,0.82988808,3286.5,3286.4,0.60864]
[1737929309299,8.57511239,3286.5,3286.4,0.60864]
[1737929309601,8.57511239,3286.5,3286.2,0.60865]
[1737929309789,3.2078,3286.3,3285.8,0.60871]
[1737929309994,3.2078,3285.9,3285.8,0.60871]
[1737929310298,3.2078,3285.9,3284.9,1.99065642]
[1737929310498,3.2078,3285.0,3284.9,2.59954642]
[1737929311000,3.2078,3285.0,3284.9,7.59954642]
[1737929311194,3.2078,3285.0,3284.9,2.59954642]
[1737929311395,3.2078,3285.0,3284.9,0.60889]
[1737929311598,3.2078,3285.0,3284.9,7.59954642]
[1737929312795,2.28987762,3285.1,3284.9,6.99065642]
[1737929312994,3.43937979,3285.3,3285.2,0.60883]
[1737929313196,4.57975525,3285.7,3285.2,1.99065642]
[1737929313504,4.57975525,3285.7,3285.6,2.59941642]
[1737929314203,4.57975525,3285.7,3285.6,7.59941642]
[1737929314593,4.57975525,3285.7,3285.6,0.60876]
[1737929315398,6.64310386,3285.8,3285.7,0.60874]
[1737929315599,6.64310386,3285.8,3285.4,0.60878]
[1737929315801,6.64310386,3285.8,3285.5,0.60876]
[1737929316098,6.64310386,3285.8,3285.4,0.60878]
[1737929316600,6.64310386,3285.8,3285.5,0.60877]
[1737929316802,6.64310386,3285.8,3285.6,0.60875]
[1737929317100,6.64310386,3285.8,3285.5,0.60877]
[1737929317403,6.64310386,3285.8,3285.3,2.65306336]
[1737929317605,3.2078,3285.4,3285.3,1.32476336]
[1737929318799,3.2078,3285.4,3284.5,1.3318]
[1737929319004,3.2078,3284.8,3284.7,0.60892]
[1737929319789,3.2078,3284.8,3284.4,1.99065642]
[1737929319994,3.2078,3284.8,3284.7,0.60892]
[1737929321101,3.2078,3285.3,3284.7,5.0]
[1737929321296,3.2078,3285.3,3285.2,0.60883]
[1737929321797,5.9482686,3285.3,3284.6,3.2078]
[1737929322003,3.2078,3285.3,3284.4,3.28485642]
[1737929322597,3.2078,3285.3,3285.2,0.60883]
[1737929325109,3.2078,3285.3,3284.6,1.99065642]
[1737929325295,3.2078,3284.8,3284.7,0.60892]
[1737929325704,3.2078,3284.8,3284.7,5.60892]
[1737929326709,3.2078,3284.8,3284.7,6.86002]
[1737929327806,3.2078,3284.8,3284.0,3.2078]
[1737929327807,9.9790686,3284.8,3283.8,7.05985679]
[1737929328110,3.2078,3283.9,3283.8,7.66894679]
[1737929329400,0.95264885,3283.9,3283.8,7.66894679]
[1737929331803,0.95264885,3283.9,3283.8,7.05985679]
[1737929332211,2.5964,3284.1,3283.8,7.05985679]
[1737929332412,3.2078,3284.0,3283.8,7.05985679]
[1737929332909,0.60912,3283.9,3283.8,7.05985679]
[1737929333101,3.2078,3284.0,3283.8,7.05985679]
[1737929333306,3.81691,3284.0,3283.8,7.05985679]
[1737929333608,3.2078,3284.0,3283.8,7.05985679]
[1737929334112,0.60906,3283.9,3283.8,7.05985679]
[1737929334408,9.9790686,3284.0,3283.8,7.05985679]
[1737929334813,10.5881286,3284.0,3283.8,7.05985679]
[1737929335305,3.2078,3284.0,3283.8,7.05985679]
[1737929335713,0.45695552,3283.9,3283.8,7.05985679]
[1737929335902,0.45695552,3283.9,3283.8,0.66247949]
[1737929336804,0.45695552,3283.9,3283.8,8.27847949]
[1737929337006,0.45695552,3283.9,3283.8,8.88756949]
[1737929337607,3.2078,3284.0,3283.9,0.60907]
[1737929338014,3.03279993,3284.0,3283.9,0.60907]
[1737929339311,0.60907,3283.9,3283.8,8.27847949]
[1737929339511,0.60919,3283.3,3282.6,0.6093]
[1737929339712,3.2078,3282.7,3282.6,8.0123]
[1737929340311,3.2078,3282.7,3282.6,7.403]
[1737929340507,9.1866689,3282.7,3282.6,7.403]
[1737929340708,3.2078,3282.7,3282.6,8.01231]
[1737929340908,3.2078,3282.7,3282.6,8.03206529]
[1737929341815,2.7486232,3282.7,3282.6,8.03206529]
[1737929342319,2.7486232,3282.7,3282.6,13.03206529]
[1737929342516,3.2078,3283.3,3282.6,7.42275529]
[1737929342709,3.2078,3283.3,3283.2,0.6092]
[1737929342912,4.5145,3284.1,3283.2,0.62895529]
[1737929343221,3.2078,3284.1,3284.0,0.60905]
[1737929343621,2.8378,3284.1,3283.5,3.31485642]
[1737929343822,2.8378,3284.1,3283.8,0.01975529]
[1737929344209,5.50181837,3284.2,3284.1,0.60903]
[1737929344416,117.99,3284.8,3284.7,0.60892]
[1737929344615,117.99,3284.8,3284.7,8.01192]
[1737929344811,117.99,3284.8,3284.7,10.02233171]
[1737929345014,113.2377,3284.8,3284.7,10.02233171]
[1737929345213,113.2377,3284.8,3284.7,10.32240068]
[1737929346024,101.0777,3284.8,3284.7,15.32240068]
[1737929346223,98.85466,3284.8,3284.7,15.32240068]
[1737929346416,84.79650196,3284.8,3284.7,15.32240068]
[1737929346622,81.17861196,3284.8,3284.7,15.32240068]
[1737929346920,65.75512864,3284.8,3284.7,15.32240068]
[1737929347220,0.00456336,3285.1,3284.7,15.32240068]
[1737929347538,24.14618656,3287.0,3285.0,3.2078]
[1737929347822,24.14618656,3287.0,3286.5,0.60857]
[1737929348326,24.14618656,3287.0,3286.5,3.2078]
[1737929348530,0.00456336,3286.9,3286.5,3.2078]
[1737929348820,0.6086,3286.4,3285.2,3.2078]
[1737929349027,3.2078,3285.9,3285.2,3.2078]
[1737929349227,3.2078,3285.9,3285.3,0.6088]
[1737929349619,3.2078,3285.9,3285.2,3.2078]
[1737929349924,4.65392043,3285.3,3285.2,3.81663]
[1737929350125,4.65392043,3285.3,3285.2,3.82119336]
[1737929351722,4.65392043,3285.3,3285.2,8.82119336]
[1737929352125,6.87947723,3286.4,3285.2,8.21236336]
[1737929352319,6.87947723,3286.4,3286.3,0.60862]
[1737929352722,6.87947723,3286.4,3286.1,0.60865]
[1737929352922,6.87947723,3286.4,3286.1,0.60866]
[1737929353323,6.87947723,3286.4,3286.2,0.60864]
[1737929353819,6.87947723,3286.4,3286.1,0.60865]
[1737929354021,6.87947723,3286.4,3286.2,0.60863]
[1737929354530,3.2078,3286.7,3286.2,0.60863]
[1737929354730,3.2078,3286.7,3286.3,0.60861]
[1737929355026,3.2078,3286.7,3286.6,0.60857]
[1737929355622,6.87947723,3286.8,3286.3,3.2078]
[1737929355820,6.87947723,3286.8,3286.7,0.60855]
[1737929356926,6.87947723,3286.8,3286.7,5.60855]
[1737929357127,6.87947723,3286.8,3286.7,8.81635]
[1737929357617,4.23216723,3286.8,3286.7,8.81635]
[1737929357820,4.23216723,3286.8,3286.7,3.81635]
[1737929358622,0.00456336,3286.9,3286.8,0.60853]
[1737929358829,0.00456336,3286.9,3286.8,8.01153]
[1737929359430,0.00456336,3286.9,3286.1,3.2078]
[1737929359431,2.75131361,3286.9,3286.1,3.2078]
[1737929359624,3.21236336,3286.9,3286.1,3.2078]
[1737929359830,3.21236336,3286.9,3286.2,0.60864]
[1737929360025,3.21236336,3286.9,3286.1,3.2078]
[1737929360333,3.21236336,3286.9,3286.4,0.60859]
[1737929360533,3.21236336,3286.9,3286.1,3.2078]
[1737929360733,3.21236336,3286.9,3286.6,0.60856]
[1737929360930,3.21236336,3286.9,3286.8,0.00248691]
[1737929361228,0.00456336,3286.9,3286.8,0.61101691]
[1737929362427,0.00456336,3286.9,3286.8,3.99401691]
[1737929364729,8.13453588,3287.6,3286.8,3.38548691]
[1737929364935,8.13453588,3287.6,3287.5,0.6084]
[1737929365125,8.13453588,3287.6,3287.0,3.2078]
[1737929365331,8.13453588,3287.6,3286.8,3.38548691]
[1737929365332,3.2078,3287.4,3286.8,3.38548691]
[1737929365531,3.2078,3286.9,3286.8,3.38548691]
[1737929365737,3.2078,3286.9,3286.5,0.60858]
[1737929365938,3.2078,3286.9,3286.7,0.60854]
[1737929366535,3.2078,3286.9,3286.5,0.00456336]
[1737929366737,5.95455025,3286.9,3286.5,0.00456336]
[1737929366935,6.56306025,3286.9,3286.5,0.00456336]
[1737929367132,5.95455025,3286.9,3286.5,0.00456336]
[1737929367332,5.95455025,3286.9,3286.0,12.786]
[1737929367538,0.60856,3286.7,3286.0,12.786]
[1737929367728,0.60855,3286.7,3286.0,6.39487247]
[1737929367932,3.2078,3286.9,3286.0,6.39487247]
[1737929368131,3.81632,3286.9,3286.2,0.60862]
[1737929368332,3.2078,3286.9,3286.3,0.60861]
[1737929369037,3.2078,3286.9,3286.5,0.60858]
[1737929369433,3.2078,3286.9,3286.2,0.00456336]
[1737929369727,3.2078,3286.9,3286.4,0.60859]
[1737929369927,3.2078,3286.9,3286.3,0.60861]
[1737929370135,3.2078,3286.9,3286.4,0.6086]
[1737929370337,0.45658983,3286.6,3286.4,0.6086]
[1737929370543,0.45658983,3286.6,3286.3,3.2078]
[1737929370730,0.45658983,3286.6,3286.5,0.60858]
[1737929371144,0.45658983,3286.6,3286.4,0.6086]
[1737929371338,0.45658983,3286.6,3286.3,3.2078]
[1737929371643,0.45658983,3286.6,3286.4,0.60859]
[1737929371944,0.45658983,3286.6,3286.4,0.6086]
[1737929372538,0.45658983,3286.6,3286.2,0.00456336]
[1737929372738,0.45658983,3286.6,3286.5,0.60858]
[1737929373038,0.45658983,3286.6,3286.4,0.6086]
[1737929373438,0.45658983,3286.6,3286.5,0.60858]
[1737929374349,1.2456,3286.8,3286.2,0.00456336]
[1737929374548,1.2456,3286.8,3286.5,0.60858]
[1737929374846,1.2456,3286.8,3286.4,0.60859]
[1737929375542,1.2456,3286.8,3286.5,0.60858]
[1737929376447,1.2456,3286.8,3286.4,0.60859]
[1737929377141,1.2456,3286.8,3286.2,0.00456336]
[1737929377341,3.2078,3286.5,3286.2,0.00456336]
[1737929380051,3.81638,3286.5,3286.2,0.00456336]
[1737929380251,3.2078,3286.5,3286.2,0.00456336]
[1737929380848,3.81639,3286.5,3286.2,0.00456336]
[1737929382352,3.81638,3286.5,3286.2,0.00456336]
[1737929383251,3.2078,3286.5,3286.2,0.00456336]
[1737929383450,3.81638,3286.5,3286.2,0.00456336]
[1737929383655,3.2078,3286.5,3286.2,0.00456336]
[1737929385059,3.47715692,3286.4,3286.2,0.00456336]
[1737929386758,3.47715692,3286.4,3286.2,0.61318336]
[1737929386959,3.47715692,3286.4,3286.2,0.00456336]
[1737929387162,3.47715692,3286.4,3286.3,0.60862]
[1737929387361,3.47715692,3286.4,3286.2,0.61318336]
[1737929388053,3.47715692,3286.4,3286.2,3.21236336]
[1737929388253,3.47715692,3286.4,3286.3,0.60862]
[1737929388655,5.10532145,3286.4,3286.2,3.21236336]
[1737929388964,5.10532145,3286.4,3286.3,0.60862]
[1737929391669,0.4565753,3286.4,3286.3,0.60862]
[1737929391963,0.4565753,3286.4,3286.3,1.89162]
[1737929395668,5.25498445,3286.4,3286.3,1.89162]
[1737929396462,5.25498445,3286.4,3286.3,5.09942]
[1737929399878,5.25498445,3286.4,3286.0,3.2078]
[1737929400076,5.25498445,3286.4,3286.3,0.60862]
[1737929401972,3.55498445,3286.4,3286.3,0.60862]
[1737929402167,2.94342471,3286.4,3286.3,0.60862]